Cogmind - Beta 15 @@@ ROGUE MODE // 2025.09.17 @ 06:47:11 Player: Blue Result: Destroyed by D-53 Grenadier with Mini Grenade Launcher Performance ------------- Evolutions (0) 0 Regions Visited (4) 800 Robots Destroyed (20) 100 Value Destroyed (341) 341 Prototype IDs (23) 460 Alien Tech Used (0) 0 Bonus (300) 300 TOTAL SCORE: 2001 Bonus ------- Aligned with FarCom 300 Cogmind --------- Core Integrity 0/250 Matter 268/300 Energy 100/100 System Corruption 0% Temperature Cool (0) Movement Rolling (235) Ox9 Location -9/Mines Parts ------- > --- POWER (1) -------- (None) > --- PROPULSION (2) --- Compact Wheel > --- UTILITY (2) ------ Cargo Storage Unit > --- WEAPON (2) ------- Assault Rifle Grenade Launcher > --- INVENTORY (30) --- Light Ion Engine Compact Wheel Medium Storage Unit High-capacity Battery (250) High-capacity Matter Pod (0) High-capacity Matter Pod (0) Weight Redist. System Hacking Suite Army-in-a-Box (30/30) Mining Laser Peak State ------------ > --- POWER ------------ Light Ion Engine > --- PROPULSION ------- Compact Wheel Compact Wheel > --- UTILITY ---------- Cargo Storage Unit > --- WEAPON ----------- Assault Rifle Grenade Launcher > --- INVENTORY -------- Light Ion Engine Compact Wheel Medium Storage Unit High-capacity Battery High-capacity Matter Pod High-capacity Matter Pod Weight Redist. System Hacking Suite Army-in-a-Box Grenade Launcher Mining Laser [Rating: 13] Favorites ----------- Power Light Ion Engine Engine Light Ion Engine Propulsion Compact Wheel Wheel Compact Wheel Utility Cargo Storage Unit Storage Cargo Storage Unit Weapon Assault Rifle Energy Gun EM Pulse Gun Ballistic Gun Assault Rifle Launcher Grenade Launcher Build | -11 -10 -10 -10 -9 ------- Run | Yrd Mat Min Exi Min Slots Evolved . | . . . . . Power . | . . . . . Propulsion . | . . . . . Utility . | . . . . . Weapon . | . . . . . Parts Attached 15 | 6 7 . 1 1 Power 2 | 1 1 . . . Engine 2 | 1 1 . . . Core . | . . . . . Reactor . | . . . . . Propulsion 4 | 2 2 . . . Treads . | . . . . . Leg . | . . . . . Wheel 4 | 2 2 . . . Hover . | . . . . . Flight . | . . . . . Utility 5 | 1 3 . 1 . Device . | . . . . . Storage 5 | 1 3 . 1 . Processor . | . . . . . Hackware . | . . . . . Protection . | . . . . . Artifact . | . . . . . Weapon 4 | 2 1 . . 1 Energy Gun 1 | 1 . . . . Energy Cannon . | . . . . . Ballistic Gun 1 | 1 . . . . Ballistic Cannon . | . . . . . Launcher 2 | . 1 . . 1 Special Weapon . | . . . . . Impact Weapon . | . . . . . Slashing Weapon . | . . . . . Piercing Weapon . | . . . . . Special Melee Weapon . | . . . . . Unidentified Prototypes . | . . . . . Parts Lost 4 | . 1 . . 3 Power 1 | . . . . 1 Propulsion 1 | . . . . 1 Utility . | . . . . . Weapon 2 | . 1 . . 1 Highest Loss Streak 2 | . 1 . . 2 To Critical Strikes . | . . . . . Average Backups 8 | . 6 9 9 10 Power . | . 1 1 . 1 Propulsion 1 | . 2 1 1 1 Utility 4 | . 2 5 5 7 Weapon 1 | . 1 2 1 1 Tool/Special . | . . . . . Unused Backups 11 | . 3 . . 8 Power 1 | . . . . 1 Propulsion 3 | . 2 . . 1 Utility 6 | . 1 . . 5 Weapon 1 | . . . . 1 Tool/Special . | . . . . . Average Slot Usage (%) 88 | . 86 100 90 85 Engine 14 | . 14 14 14 14 Wheel 28 | . 28 28 28 28 Storage 17 | . 17 28 19 14 Energy Gun 3 | . 7 . . . Ballistic Gun 14 | . 14 14 14 14 Launcher 9 | . 5 14 14 14 Peak Build Rating 13 | 6 8 8 13 13 Average Rating 8 | 4 6 8 10 12 On Entrance 7 | . 6 8 8 13 Naked Turns . | . . . . . Heaviest Build 148 | 14 22 22 148 148 Greatest Support 32 | 26 32 32 32 32 Greatest Overweight (x) 9 | . . . 4 9 Average Overweight (x) 1 | . . . 1 4 Largest Inventory Capacity 30 | 8 10 10 30 30 Average Capacity 16 | 7 8 10 21 30 Most Carried 16 | 1 10 10 16 16 Average Carried 10 | . 7 10 12 15 Final Capacity 30 | 8 10 10 30 30 Final Carried 16 | 1 10 10 16 15 Class Distribution -------------------- 63% | Mutant 36% | Hauler-Mutant Dominant Class ---------------- Mutant | -10/Materials Mutant | -10/Mines Hauler-Mutant | -10/Exiles Hauler-Mutant | -9/Mines Resources | -11 -10 -10 -10 -9 ----------- Run | Yrd Mat Min Exi Min Matter Collected 527 | 184 276 . . 67 Remotely . | . . . . . Salvage Created 475 | . 412 . . 63 Parts 40 | . 32 . . 8 Haulers Intercepted 2 | . 2 . . . Recyclers Shooed 2 | . 1 . . 1 Parts Field Recycled . | . . . . . Retrieved Matter . | . . . . . Parts Self-Destructed . | . . . . . Prevented . | . . . . . Kills | -11 -10 -10 -10 -9 ------- Run | Yrd Mat Min Exi Min Combat Hostiles Destroyed 13 | . 10 . . 3 Guns 5 | . 5 . . . AOE 8 | . 5 . . 3 Classes Destroyed 7 | . 6 . . 1 Builder 3 | . 1 . . 2 Hauler 2 | . 2 . . . Recycler 1 | . 1 . . . Operator 1 | . 1 . . . Swarmer 6 | . 6 . . . Grunt 6 | . 4 . . 2 Brawler 1 | . . . . 1 Best Kill Streak 6 | . 6 . . 5 Combat Bots Only 5 | . 5 . . 3 Max Kills in Single Turn 4 | . 4 . . 2 Gunslinging . | . . . . . Exploded 3 | . 3 . . 1 Melee . | . . . . . Uniques/NPCs Destroyed . | . . . . . Combat | -11 -10 -10 -10 -9 -------- Run | Yrd Mat Min Exi Min Hostile Shots Fired 78 | . 52 . . 26 Missed 24 | . 14 . . 10 Hits 54 | . 38 . . 16 Projectile 54 | . 38 . . 16 AOE 4 | . . . . 4 Critical Strikes 2 | . . . . 2 Damage Taken 739 | . 396 . . 343 Core 277 | . 114 . . 163 Absorbed by Shields . | . . . . . Core Remaining (%) 100 | 100 . . . . Volleys Fired 53 | . 48 . . 5 Largest 2 | . 2 . . 2 Hottest 60 | . 60 . . 50 Shots Fired 69 | . 59 . . 10 Gun 62 | . 57 . . 5 Cannon . | . . . . . Launcher 7 | . 2 . . 5 Special . | . . . . . Kinetic 53 | . 48 . . 5 Thermal . | . . . . . Explosive 7 | . 2 . . 5 Electromagnetic 9 | . 9 . . . Robot Hit Streak 11 | . 11 . . 3 Robot Miss Streak 4 | . 4 . . 1 Penetration Max . | . . . . . Secondary Targets . | . . . . . Shots Hit Robots 43 | . 37 . . 6 Core Hits 32 | . 23 . . 9 Critical Kills . | . . . . . Critical Parts Destroyed . | . . . . . Critical Strikes 1 | . 1 . . . Corrupt 1 | . 1 . . . Melee Attacks . | . . . . . Impact . | . . . . . Slashing . | . . . . . Piercing . | . . . . . Sneak Attacks . | . . . . . Combat Hostiles . | . . . . . Follow-up Attacks . | . . . . . Damage Inflicted 1181 | . 714 . . 467 Guns 472 | . 460 . . 12 Cannons . | . . . . . Explosions 709 | . 254 . . 455 Melee . | . . . . . Ramming . | . . . . . Kinetic 435 | . 423 . . 12 Thermal . | . . . . . Explosive 709 | . 254 . . 455 Electromagnetic 37 | . 37 . . . Impact . | . . . . . Slashing . | . . . . . Piercing . | . . . . . Highest Corruption . | . . . . . Average Corruption . | . . . . . Corruption Purged . | . . . . . Corruption Blocked . | . . . . . Overload Shots . | . . . . . Overflow Damage 25 | . 25 . . . Projectiles . | . . . . . Explosions 25 | . 25 . . . Melee . | . . . . . Knockbacks . | . . . . . Impact . | . . . . . Kinetic . | . . . . . Secondary . | . . . . . Self-Inflicted Damage . | . . . . . Shots . | . . . . . Rammed . | . . . . . Targets Rammed . | . . . . . Kicked . | . . . . . Crushed . | . . . . . Highest Temperature 12 | . 12 . . 6 Average Temperature 6 | . 8 . . 3 Received Heat Transfer 132 | . 96 . . 36 Siege Activations . | . . . . . Martial Activations . | . . . . . Shielding Activations . | . . . . . Robots Disrupted . | . . . . . Combat Hostiles . | . . . . . Robots Corrupted . | . . . . . Combat Hostiles . | . . . . . Parts Fried . | . . . . . Impact Corruptions . | . . . . . Robots Melted . | . . . . . Combat Hostiles . | . . . . . Parts Melted . | . . . . . Heat Transferred . | . . . . . Parts Sabotaged . | . . . . . Parts Stolen . | . . . . . Parts Stripped . | . . . . . Power Chain Reactions . | . . . . . Alert | -11 -10 -10 -10 -9 ------- Run | Yrd Mat Min Exi Min Maximum Alert Level . | . . . . . Low Security (%) 100 | 100 100 100 . 100 Level 1 . | . . . . . Level 2 . | . . . . . Level 3 . | . . . . . Level 4 . | . . . . . Level 5 . | . . . . . High Security . | . . . . . Max Security . | . . . . . Peak Influence 187 | . 187 59 . 99 Initial 59 | . . 59 . . Average 54 | . 59 56 . 54 Influence Increases 423 | . 294 . . 129 Destroy 0b10 Robot/C 260 | . 200 . . 60 Destroy 0b10 Robot/NC 35 | . 25 . . 10 Destroy Leader 54 | . 44 . . 10 Destroy Structure 29 | . 10 . . 19 Lose Combat Pursuer 45 | . 15 . . 30 Influence Decreases 384 | . 141 104 49 90 Entered New Map 143 | . . 94 49 . Time Decay 201 | . 131 10 . 60 Lost Part 40 | . 10 . . 30 Squads Dispatched 3 | . 2 . . 1 Investigation . | . . . . . Extermination . | . . . . . Reinforcement 3 | . 2 . . 1 Assault . | . . . . . Garrison . | . . . . . Intercept . | . . . . . Searches Triggered . | . . . . . Construction Impeded 1 | . . . . 1 Haulers Reinforced . | . . . . . Active Scanning Responses . | . . . . . Cargo Convoy Interrupts . | . . . . . Stealth | -11 -10 -10 -10 -9 --------- Run | Yrd Mat Min Exi Min Distress Signals 2 | . 2 . . . Communications Jammed . | . . . . . Distress Signals . | . . . . . Times Spotted 45 | . 18 . . 27 Peak Tracking Total 22 | . 7 . . 22 Tactical Retreats 2 | . 1 . . 1 Traps | -11 -10 -10 -10 -9 ------- Run | Yrd Mat Min Exi Min Traps Triggered 1 | . 1 . . . Indirectly . | . . . . . Trap Hack Attempts . | . . . . . Triggered . | . . . . . Disarmed . | . . . . . Reprogrammed . | . . . . . Reused . | . . . . . Traps Extracted . | . . . . . Installed . | . . . . . Triggered . | . . . . . Machines | -11 -10 -10 -10 -9 ---------- Run | Yrd Mat Min Exi Min Machines Disabled . | . . . . . Max in Single Turn . | . . . . . Machines Repaired . | . . . . . Machines Dismantled . | . . . . . Machines Sabotaged . | . . . . . Overloaded Fab Kills . | . . . . . Hacking | -11 -10 -10 -10 -9 --------- Run | Yrd Mat Min Exi Min Machines Accessed 3 | . 2 . 1 . Terminals 2 | . 2 . . . Fabricators . | . . . . . Repair Stations . | . . . . . Recycling Units . | . . . . . Scanalyzers . | . . . . . Garrison Access . | . . . . . Total Hacks 5 | . 4 . 1 . Successful 2 | . 1 . 1 . Failed 3 | . 3 . . . Catastrophic 1 | . 1 . . . Database Lockouts . | . . . . . Manual 1 | . . . 1 . Terminals 4 | . 4 . . . Fabricators . | . . . . . Repair Stations . | . . . . . Recycling Units . | . . . . . Scanalyzers . | . . . . . Garrison Access . | . . . . . Terminal Hacks 2 | . 1 . 1 . Transport Status 1 | . 1 . . . Proto ID Catalog 1 | . . . 1 . Fabricator Hacks . | . . . . . Repair Station Hacks . | . . . . . Recycling Unit Hacks . | . . . . . Scanalyzer . | . . . . . Garrison Access Hacks . | . . . . . Unauthorized Hacks . | . . . . . Terminals . | . . . . . Fabricators . | . . . . . Repair Stations . | . . . . . Recycling Units . | . . . . . Scanalyzers . | . . . . . Garrison Access . | . . . . . Data Cores Recovered . | . . . . . Used . | . . . . . Hacking Detections 2 | . 2 . . . Full Trace Events . | . . . . . Feedback Events . | . . . . . Feedback Blocked . | . . . . . Robot Schematics Acquired . | . . . . . Robots Built . | . . . . . Authchips . | . . . . . Time . | . . . . . Total Robot Build Rating . | . . . . . Part Schematics Acquired . | . . . . . Parts Built . | . . . . . Authchips . | . . . . . Time . | . . . . . Total Part Build Rating . | . . . . . Parts Repaired . | . . . . . Time . | . . . . . Parts Recycled . | . . . . . Recycled Matter . | . . . . . Retrieved Matter . | . . . . . Retrieved Components . | . . . . . Parts Scanalyzed . | . . . . . Part Schematics Acquired . | . . . . . Parts Damaged . | . . . . . Bothacking | -11 -10 -10 -10 -9 ------------ Run | Yrd Mat Min Exi Min Used RIF Installer . | . . . . . Robots Hacked . | . . . . . Non-combat . | . . . . . Combat . | . . . . . Robot Hacks Applied . | . . . . . Relay Couplers Released . | . . . . . Fabnet Peak Effective % . | . . . . . Robots Rewired . | . . . . . Allies Hacked . | . . . . . Hacks Repelled . | . . . . . Allies | -11 -10 -10 -10 -9 -------- Run | Yrd Mat Min Exi Min Total Allies 3 | . . 3 . . Largest Group 3 | . . 3 3 3 Highest-Rated Group 40 | . . 40 40 40 Highest-Rated Ally 16 | . . 16 16 16 Total Orders . | . . . . . Ally Attacks 9 | . . . . 9 Total Damage 62 | . . . . 62 Kills . | . . . . . Allies Corrupted 1 | . . . . 1 Allies Melted . | . . . . . Intel | -11 -10 -10 -10 -9 ------- Run | Yrd Mat Min Exi Min Active Infowar (turns) . | . . . . . Robot Analysis Total . | . . . . . Derelict Logs Recovered 1 | . . . . 1 Drone Launches . | . . . . . Drone Recoveries . | . . . . . Exploration | -11 -10 -10 -10 -9 ------------- Run | Yrd Mat Min Exi Min Turns Passed 946 | 43 424 26 300 153 Spaces Moved 679 | 39 301 27 227 85 Core 3 | 3 . . . . Treads . | . . . . . Legs . | . . . . . Wheels 676 | 36 301 27 227 85 Hover . | . . . . . Flight . | . . . . . Fastest Speed 50 | 50 90 100 100 160 Average Speed 113 | 85 92 100 128 161 Slowest Speed 235 | 90 100 100 160 235 Overloaded Moves . | . . . . . Propulsion Burnouts . | . . . . . Robots Hopped . | . . . . . Potential Cave-ins . | . . . . . Cave-ins Triggered . | . . . . . Exploration Rate (%) 34 | 4 61 6 60 43 Regions Visited 4 Branch Regions 3 Pre-discovered Areas . | . . . . . Known Exits Taken . | . . . . . Unknown Exits Taken 4 | 1 1 1 1 . Scrap Searched 1 | . . . . 1 Spaces Dug . | . . . . . Terrain Destroyed 48 | . 11 . . 37 Melee . | . . . . . Projectile . | . . . . . AOE 48 | . 11 . . 37 Terrain Rammed . | . . . . . Walls Destroyed . | . . . . . Machines Disabled . | . . . . . Actions | -11 -10 -10 -10 -9 --------- Run | Yrd Mat Min Exi Min Total 789 | 45 390 26 237 91 Wait 13 | . 13 . . . Move 675 | 38 300 26 226 85 Hop . | . . . . . Pick Up 21 | 1 12 . 8 . Fast Attach 10 | 6 4 . . . Attach 2 | . . . 1 1 Detach 2 | . 2 . . . Swap 3 | . 3 . . . Drop 10 | . 8 . 2 . Fire 53 | . 48 . . 5 Melee . | . . . . . Ram . | . . . . . Kick . | . . . . . Crush . | . . . . . Escape Stasis . | . . . . . Rewire . | . . . . . Trap . | . . . . . Miscellaneous . | . . . . . Route ------- -11/Scrapyard -10/Materials -10/Mines -10/Exiles -9/Mines History --------- Turn | Location | Event 4 | -11/Scrapyard | Discovered new exit (range 15) 44 | -11/Scrapyard | Entered Materials 153 | -10/Materials | Discovered new exit (range 13) 302 | -10/Materials | Build established: Mutant 468 | -10/Materials | Entered Mines 473 | -10/Mines | Assisted by bots powering up and referring to "LRC-V3" 483 | -10/Mines | Deemed a non-threat by the Exiles lab entrance 484 | -10/Mines | Discovered new exit (range 5) 494 | -10/Mines | Entered Exiles 494 | -10/Exiles | Accompanied by 3 allies 521 | -10/Exiles | Met 8R-AWN 535 | -10/Exiles | Met EX-HEX 562 | -10/Exiles | Met EX-BIN 575 | -10/Exiles | Aligned with FarCom system 576 | -10/Exiles | Given EX-Vault access code 602 | -10/Exiles | Opened EX-Vault 643 | -10/Exiles | Found Army-in-a-Box 674 | -10/Exiles | Warned to stay clear of 0b10 Research branches 722 | -10/Exiles | Met EX-DEC 776 | -10/Exiles | Discovered new exit (range 12) 794 | -10/Exiles | Left Exiles lab with Army-in-a-Box 794 | -10/Exiles | Entered Mines 794 | -9/Mines | Accompanied by 3 allies 799 | -9/Mines | Learned location of 1 exit from Lower Caves 851 | -9/Mines | Core integrity fell below 50% 904 | -9/Mines | Build established: Hauler-Mutant 917 | -9/Mines | Assembled infested the area 947 | -9/Mines | Destroyed by D-53 Grenadier with Mini Grenade Launcher Last Messages --------------- 00897_ Found 35 Matter. 00898_ Acquired 35 matter. 00898_ Acquired 32 matter. 00905_ K-01 Serf collects debris. 00917_ ALERT: Infestation in the mines, dispatching Demolisher response squad. 00917_ K-01 Serf collects debris. 00943_ C-30 ARC bursts open, deploying its payload. 00943_ D-53 Grenadier unfolds itself. 00943_ Com. Wheel destroyed. 00945_ Lgt. Ion Engine destroyed. 00945_ as-62791 destroyed. 00945_ as-28083 destroyed. 00945_ as-16897 destroyed. 00945_ as-69117 destroyed. 00945_ as-94505 destroyed. 00945_ as-18399 destroyed. 00946_ K-01 Serf collects debris. 00947_ The unstable cave ceiling collapses. Map ----- +----------------------------------------------------+ | ?######### #### ##???????????????????????? | | ## #???????????????????????? | | ? #???????????????????????? | | ????????## #???????????????????????? | | ?????????## ##???????????????????????? | | ??????????## #######????????????????????????? | | ???????????# #??????????????????????????????? | | ????##?????# #??????????????????????????????? | | ???## ????# !###????????????????????????????? | | # ## ???# ##???????????????????????????? | | #?## ##??????????????????????????? | | ???# ## ##?????????????????????????? | | ????# ##????????????????????????? | | ????## ## """ #????????????????????????? | | ????????## """ ##???????????????????????? | | ?????????## """ # #????????????????????? | | ?????????# #????????????????????? | | ?????????# ##??????????????????? | | ?????????# ## ## #??????????????????? | | ??????#??# #?####?? #??????????????????? | | ??????# ?# #?????????# ##?????????????????? | | ?????## # #??????????? ##????????????????? | | ????## ##??????##### ##???????????????? | | ???## #?????## # #???????????????? | | ??## ##????# ##??????????????? | | ??# ##???# @ ####???????????? | | ?# ##### #???????????? | | "% d #??????????? | | d #??????????? | | #### #??????????? | | ### k #??# # % # #??????????? | | # #??## ??##### # #?????????? | | ## ????### ?????# %% ## #????????? | | ?# ???????## ?????#aaa #?# #????????? | | ?#?????????# ????%< a###??#####????????? | | ???????????## ??? aaa ?????????????????? | | ????????????#### ??? aa?????????????????? | | ????????????????# # ??? a ????????????????? | | ?????????????????## ???# a ????????????????? | | ????????????????????????### ???????????????? | | ???????????????????????????# ???????????????? | | ?????????????????????????????????????????????? | | ?????????????????????????????????????????????? | | ?????????????????????????????????????????????? | | ?????????????????????????????????????????????? | | ?????????????????????????????????????????????? | | ?????????????????????????????????????????????? | | ?????????????????????????????????????????????? | | ?????????????????????????????????????????????? | | ?????????????????????????????????????????????? | +----------------------------------------------------+ Best States ------------- Heat Dissipation 25 Energy Generation 10 Energy Capacity 250 Matter Stores 300 Matter Capacity 500 Sight Range 16 Terrain Scan Density 10 Evasion (%) 44 Item Schematics ----------------- None Robot Schematics ------------------ None Fabricated ------------ Nothing Repaired ---------- Nothing Alien Tech Used ----------------- None Achievements -------------- None Challenges ------------ None Game ------ Seed PointyMiniAutohacker Manual? 0 Play Time 00:16:58 Cumulative 38.0 hours Start 2025.09.17 @ 06:30:14 End 2025.09.17 @ 06:47:11 Sessions 1 Manual Loads 0 Difficulty Rogue Special Mode None Game No. 26 Rogue 26 Adventurer 0 Explorer 0 Win Type - Total 0 Types 0/0/0/0/0/0/0/0/0/0 Lore% 10 Gallery% 26 Achievement% 26 Wizard Run 0 Options --------- Layout 1 ASCII 0 Keyboard 1 Movement Arrows Keybinds 0 Fullscreen 1 Font 24/Smallcaps Map View 50x35 Zoom Use 0% Tactical HUD 1 Map Filters NONE Filters NONE Steam 1 RUN: be2bbe9b-9618-45e9-9c31-e222e101a810